{"text_format":"3","workbook":"xlsx","n_sheets":5,"sheets":["Фактура","Клиенти","Фактури – основен","Подробни данни за фактурата","Проследяване за тази фактура"],"not_rendered":{"defined_names":8},"read":"whole","date_system":"1900"}

{"sheet":"Фактура","index":0,"n_rows":39,"n_cols":7,"rows_kept":39,"merged":[[1,1,1,2],[1,3,1,4],[1,5,1,6],[2,1,2,2],[2,3,2,4],[2,5,2,6],[3,3,3,4],[4,3,4,4],[5,3,5,4],[37,1,37,4],[38,1,38,4]]}
[null,"Име на фирма"]
[null,"Улица и номер",null,"Т: Телефонен номер",null,"Имейл"]
[null,"Град, област, пощ. код",null,"Ф: Номер на факс",null,"Уеб сайт"]
[null,"Да се плати от:",{"$f":"IFERROR(VLOOKUP(VLOOKUP(rngФактура,ФактуриОсновен[],2,FALSE),СписъкКлиенти[],3,TRUE),\"\")","v":"Contoso, Ltd"},{"$f":"\"Телефон: \"&IFERROR(VLOOKUP(VLOOKUP(rngФактура,ФактуриОсновен[],2,FALSE),СписъкКлиенти[],9,FALSE),\"\")","v":"Телефон: 432-555-0179"},null,"Фактура №:","3-456-2"]
[null,"Адрес:",{"$f":"IFERROR(IF((VLOOKUP(VLOOKUP(rngФактура,ФактуриОсновен[],2,FALSE),СписъкКлиенти[],5,FALSE))=\"\",\"\",(VLOOKUP(VLOOKUP(rngФактура,ФактуриОсновен[],2,FALSE),СписъкКлиенти[],5,FALSE))),\"\")","v":"ул. Орехова градина 567"},{"$f":"\"Факс:       \"&IFERROR(VLOOKUP(VLOOKUP(rngФактура,ФактуриОсновен[],2,FALSE),СписъкКлиенти[],11,FALSE),\"\")","v":"Факс:       432-555-0123"},null,"Дата на фактура:",{"$f":"IFERROR(IF(VLOOKUP(rngФактура,ФактуриОсновен[],3,FALSE)=\"\",\"\",VLOOKUP(rngФактура,ФактуриОсновен[],3,FALSE)),\"\")","v":{"v":43687,"d":"4368700.00%"}}]
[null,null,{"$f":"IFERROR(VLOOKUP(VLOOKUP(rngФактура,ФактуриОсновен[],2,FALSE),СписъкКлиенти[],6,FALSE)&\", \"& VLOOKUP(VLOOKUP(G4,ФактуриОсновен[],2,FALSE),СписъкКлиенти[],7,FALSE)&\" \"&VLOOKUP(VLOOKUP(G4,ФактуриОсновен[],2,FALSE),СписъкКлиенти[],8,FALSE),\"\")","v":"Велико Търново, Велико Търново 098765"},{"$f":"\"Имейл: \"&IFERROR(VLOOKUP(VLOOKUP(rngФактура,ФактуриОсновен[],2,FALSE),СписъкКлиенти[],10,FALSE),\"\")","v":"Имейл: someone@example.com"}]
[null,{"$f":"\"Фактура за: \"&IFERROR(VLOOKUP(rngФактура,ФактуриОсновен[],4),\"\")","v":"Фактура за: Проект 2"}]
[null,"Артикул №","Описание","Кол-во","Единична цена","Отстъпка","Цена"]
[null,{"$f":"IFERROR(INDEX(Подробниданнизафактурата[],SMALL(IF(Подробниданнизафактурата[Фактура №]=rngФактура,ROW(Подробниданнизафактурата[])-ROW(Подробниданнизафактурата[#Headers])), ROW(1:1)), MATCH($B$8, Подробниданнизафактурата[#Headers], 0)),\"\")","v":"Z4567"},{"$f":"IFERROR(INDEX(Подробниданнизафактурата[],SMALL(IF(Подробниданнизафактурата[Фактура №]=rngФактура,ROW(Подробниданнизафактурата[])-ROW(Подробниданнизафактурата[#Headers])), ROW(1:1)), MATCH($C$8, Подробниданнизафактурата[#Headers], 0)),\"\")","v":"Фактура 3-456-2 данни 1"},{"$f":"IFERROR(INDEX(Подробниданнизафактурата[],SMALL(IF(Подробниданнизафактурата[Фактура №]=rngФактура,ROW(Подробниданнизафактурата[])-ROW(Подробниданнизафактурата[#Headers])), ROW(1:1)), MATCH($D$8, Подробниданнизафактурата[#Headers], 0)),\"\")","v":39},{"$f":"IFERROR(INDEX(Подробниданнизафактурата[],SMALL(IF(Подробниданнизафактурата[Фактура №]=rngФактура,ROW(Подробниданнизафактурата[])-ROW(Подробниданнизафактурата[#Headers])), ROW(1:1)), MATCH($E$8, Подробниданнизафактурата[#Headers], 0)),\"\")","v":{"v":5,"d":"5.00 лв."}},{"$f":"IFERROR(INDEX(Подробниданнизафактурата[],SMALL(IF(Подробниданнизафактурата[Фактура №]=rngФактура,ROW(Подробниданнизафактурата[])-ROW(Подробниданнизафактурата[#Headers])), ROW(1:1)), MATCH($F$8, Подробниданнизафактурата[#Headers], 0)),\"\")","v":0},{"$f":"IFERROR((D9*E9)-F9,\"\")","v":{"v":195,"d":"195.00 лв."}}]
[null,{"$f":"IFERROR(INDEX(Подробниданнизафактурата[],SMALL(IF(Подробниданнизафактурата[Фактура №]=rngФактура,ROW(Подробниданнизафактурата[])-ROW(Подробниданнизафактурата[#Headers])), ROW(2:2)), MATCH($B$8, Подробниданнизафактурата[#Headers], 0)),\"\")","v":"Z4568"},{"$f":"IFERROR(INDEX(Подробниданнизафактурата[],SMALL(IF(Подробниданнизафактурата[Фактура №]=rngФактура,ROW(Подробниданнизафактурата[])-ROW(Подробниданнизафактурата[#Headers])), ROW(2:2)), MATCH($C$8, Подробниданнизафактурата[#Headers], 0)),\"\")","v":"Фактура 3-456-2 данни 2"},{"$f":"IFERROR(INDEX(Подробниданнизафактурата[],SMALL(IF(Подробниданнизафактурата[Фактура №]=rngФактура,ROW(Подробниданнизафактурата[])-ROW(Подробниданнизафактурата[#Headers])), ROW(2:2)), MATCH($D$8, Подробниданнизафактурата[#Headers], 0)),\"\")","v":40},{"$f":"IFERROR(INDEX(Подробниданнизафактурата[],SMALL(IF(Подробниданнизафактурата[Фактура №]=rngФактура,ROW(Подробниданнизафактурата[])-ROW(Подробниданнизафактурата[#Headers])), ROW(2:2)), MATCH($E$8, Подробниданнизафактурата[#Headers], 0)),\"\")","v":{"v":4,"d":"4.00 лв."}},{"$f":"IFERROR(INDEX(Подробниданнизафактурата[],SMALL(IF(Подробниданнизафактурата[Фактура №]=rngФактура,ROW(Подробниданнизафактурата[])-ROW(Подробниданнизафактурата[#Headers])), ROW(2:2)), MATCH($F$8, Подробниданнизафактурата[#Headers], 0)),\"\")","v":{"v":5,"d":"5.00 лв."}},{"v":155,"d":"155.00 лв."}]
[null,{"$f":"IFERROR(INDEX(Подробниданнизафактурата[],SMALL(IF(Подробниданнизафактурата[Фактура №]=rngФактура,ROW(Подробниданнизафактурата[])-ROW(Подробниданнизафактурата[#Headers])), ROW(3:3)), MATCH($B$8, Подробниданнизафактурата[#Headers], 0)),\"\")","v":"Z4569"},{"$f":"IFERROR(INDEX(Подробниданнизафактурата[],SMALL(IF(Подробниданнизафактурата[Фактура №]=rngФактура,ROW(Подробниданнизафактурата[])-ROW(Подробниданнизафактурата[#Headers])), ROW(3:3)), MATCH($C$8, Подробниданнизафактурата[#Headers], 0)),\"\")","v":"Фактура 3-456-2 данни 3"},{"$f":"IFERROR(INDEX(Подробниданнизафактурата[],SMALL(IF(Подробниданнизафактурата[Фактура №]=rngФактура,ROW(Подробниданнизафактурата[])-ROW(Подробниданнизафактурата[#Headers])), ROW(3:3)), MATCH($D$8, Подробниданнизафактурата[#Headers], 0)),\"\")","v":30},{"$f":"IFERROR(INDEX(Подробниданнизафактурата[],SMALL(IF(Подробниданнизафактурата[Фактура №]=rngФактура,ROW(Подробниданнизафактурата[])-ROW(Подробниданнизафактурата[#Headers])), ROW(3:3)), MATCH($E$8, Подробниданнизафактурата[#Headers], 0)),\"\")","v":{"v":6,"d":"6.00 лв."}},{"$f":"IFERROR(INDEX(Подробниданнизафактурата[],SMALL(IF(Подробниданнизафактурата[Фактура №]=rngФактура,ROW(Подробниданнизафактурата[])-ROW(Подробниданнизафактурата[#Headers])), ROW(3:3)), MATCH($F$8, Подробниданнизафактурата[#Headers], 0)),\"\")","v":{"v":7,"d":"7.00 лв."}},{"v":173,"d":"173.00 лв."}]
[null,{"$f":"IFERROR(INDEX(Подробниданнизафактурата[],SMALL(IF(Подробниданнизафактурата[Фактура №]=rngФактура,ROW(Подробниданнизафактурата[])-ROW(Подробниданнизафактурата[#Headers])), ROW(4:4)), MATCH($B$8, Подробниданнизафактурата[#Headers], 0)),\"\")","v":"Z4570"},{"$f":"IFERROR(INDEX(Подробниданнизафактурата[],SMALL(IF(Подробниданнизафактурата[Фактура №]=rngФактура,ROW(Подробниданнизафактурата[])-ROW(Подробниданнизафактурата[#Headers])), ROW(4:4)), MATCH($C$8, Подробниданнизафактурата[#Headers], 0)),\"\")","v":"Фактура 3-456-2 данни 4"},{"$f":"IFERROR(INDEX(Подробниданнизафактурата[],SMALL(IF(Подробниданнизафактурата[Фактура №]=rngФактура,ROW(Подробниданнизафактурата[])-ROW(Подробниданнизафактурата[#Headers])), ROW(4:4)), MATCH($D$8, Подробниданнизафактурата[#Headers], 0)),\"\")","v":40},{"$f":"IFERROR(INDEX(Подробниданнизафактурата[],SMALL(IF(Подробниданнизафактурата[Фактура №]=rngФактура,ROW(Подробниданнизафактурата[])-ROW(Подробниданнизафактурата[#Headers])), ROW(4:4)), MATCH($E$8, Подробниданнизафактурата[#Headers], 0)),\"\")","v":{"v":7,"d":"7.00 лв."}},{"$f":"IFERROR(INDEX(Подробниданнизафактурата[],SMALL(IF(Подробниданнизафактурата[Фактура №]=rngФактура,ROW(Подробниданнизафактурата[])-ROW(Подробниданнизафактурата[#Headers])), ROW(4:4)), MATCH($F$8, Подробниданнизафактурата[#Headers], 0)),\"\")","v":0},{"v":280,"d":"280.00 лв."}]
[null,{"$f":"IFERROR(INDEX(Подробниданнизафактурата[],SMALL(IF(Подробниданнизафактурата[Фактура №]=rngФактура,ROW(Подробниданнизафактурата[])-ROW(Подробниданнизафактурата[#Headers])), ROW(5:5)), MATCH($B$8, Подробниданнизафактурата[#Headers], 0)),\"\")","v":"Z4571"},{"$f":"IFERROR(INDEX(Подробниданнизафактурата[],SMALL(IF(Подробниданнизафактурата[Фактура №]=rngФактура,ROW(Подробниданнизафактурата[])-ROW(Подробниданнизафактурата[#Headers])), ROW(5:5)), MATCH($C$8, Подробниданнизафактурата[#Headers], 0)),\"\")","v":"Фактура 3-456-2 данни 5"},{"$f":"IFERROR(INDEX(Подробниданнизафактурата[],SMALL(IF(Подробниданнизафактурата[Фактура №]=rngФактура,ROW(Подробниданнизафактурата[])-ROW(Подробниданнизафактурата[#Headers])), ROW(5:5)), MATCH($D$8, Подробниданнизафактурата[#Headers], 0)),\"\")","v":10},{"$f":"IFERROR(INDEX(Подробниданнизафактурата[],SMALL(IF(Подробниданнизафактурата[Фактура №]=rngФактура,ROW(Подробниданнизафактурата[])-ROW(Подробниданнизафактурата[#Headers])), ROW(5:5)), MATCH($E$8, Подробниданнизафактурата[#Headers], 0)),\"\")","v":{"v":4,"d":"4.00 лв."}},{"$f":"IFERROR(INDEX(Подробниданнизафактурата[],SMALL(IF(Подробниданнизафактурата[Фактура №]=rngФактура,ROW(Подробниданнизафактурата[])-ROW(Подробниданнизафактурата[#Headers])), ROW(5:5)), MATCH($F$8, Подробниданнизафактурата[#Headers], 0)),\"\")","v":0},{"v":40,"d":"40.00 лв."}]
[null,{"$f":"IFERROR(INDEX(Подробниданнизафактурата[],SMALL(IF(Подробниданнизафактурата[Фактура №]=rngФактура,ROW(Подробниданнизафактурата[])-ROW(Подробниданнизафактурата[#Headers])), ROW(6:6)), MATCH($B$8, Подробниданнизафактурата[#Headers], 0)),\"\")","v":"Z4572"},{"$f":"IFERROR(INDEX(Подробниданнизафактурата[],SMALL(IF(Подробниданнизафактурата[Фактура №]=rngФактура,ROW(Подробниданнизафактурата[])-ROW(Подробниданнизафактурата[#Headers])), ROW(6:6)), MATCH($C$8, Подробниданнизафактурата[#Headers], 0)),\"\")","v":"Фактура 3-456-2 данни 6"},{"$f":"IFERROR(INDEX(Подробниданнизафактурата[],SMALL(IF(Подробниданнизафактурата[Фактура №]=rngФактура,ROW(Подробниданнизафактурата[])-ROW(Подробниданнизафактурата[#Headers])), ROW(6:6)), MATCH($D$8, Подробниданнизафактурата[#Headers], 0)),\"\")","v":5},{"$f":"IFERROR(INDEX(Подробниданнизафактурата[],SMALL(IF(Подробниданнизафактурата[Фактура №]=rngФактура,ROW(Подробниданнизафактурата[])-ROW(Подробниданнизафактурата[#Headers])), ROW(6:6)), MATCH($E$8, Подробниданнизафактурата[#Headers], 0)),\"\")","v":{"v":8,"d":"8.00 лв."}},{"$f":"IFERROR(INDEX(Подробниданнизафактурата[],SMALL(IF(Подробниданнизафактурата[Фактура №]=rngФактура,ROW(Подробниданнизафактурата[])-ROW(Подробниданнизафактурата[#Headers])), ROW(6:6)), MATCH($F$8, Подробниданнизафактурата[#Headers], 0)),\"\")","v":0},{"v":40,"d":"40.00 лв."}]
[null,{"$f":"IFERROR(INDEX(Подробниданнизафактурата[],SMALL(IF(Подробниданнизафактурата[Фактура №]=rngФактура,ROW(Подробниданнизафактурата[])-ROW(Подробниданнизафактурата[#Headers])), ROW(7:7)), MATCH($B$8, Подробниданнизафактурата[#Headers], 0)),\"\")","v":"Z4573"},{"$f":"IFERROR(INDEX(Подробниданнизафактурата[],SMALL(IF(Подробниданнизафактурата[Фактура №]=rngФактура,ROW(Подробниданнизафактурата[])-ROW(Подробниданнизафактурата[#Headers])), ROW(7:7)), MATCH($C$8, Подробниданнизафактурата[#Headers], 0)),\"\")","v":"Фактура 3-456-2 данни 7"},{"$f":"IFERROR(INDEX(Подробниданнизафактурата[],SMALL(IF(Подробниданнизафактурата[Фактура №]=rngФактура,ROW(Подробниданнизафактурата[])-ROW(Подробниданнизафактурата[#Headers])), ROW(7:7)), MATCH($D$8, Подробниданнизафактурата[#Headers], 0)),\"\")","v":70},{"$f":"IFERROR(INDEX(Подробниданнизафактурата[],SMALL(IF(Подробниданнизафактурата[Фактура №]=rngФактура,ROW(Подробниданнизафактурата[])-ROW(Подробниданнизафактурата[#Headers])), ROW(7:7)), MATCH($E$8, Подробниданнизафактурата[#Headers], 0)),\"\")","v":{"v":6,"d":"6.00 лв."}},{"$f":"IFERROR(INDEX(Подробниданнизафактурата[],SMALL(IF(Подробниданнизафактурата[Фактура №]=rngФактура,ROW(Подробниданнизафактурата[])-ROW(Подробниданнизафактурата[#Headers])), ROW(7:7)), MATCH($F$8, Подробниданнизафактурата[#Headers], 0)),\"\")","v":0},{"v":420,"d":"420.00 лв."}]
[null,{"$f":"IFERROR(INDEX(Подробниданнизафактурата[],SMALL(IF(Подробниданнизафактурата[Фактура №]=rngФактура,ROW(Подробниданнизафактурата[])-ROW(Подробниданнизафактурата[#Headers])), ROW(8:8)), MATCH($B$8, Подробниданнизафактурата[#Headers], 0)),\"\")","v":"Z4574"},{"$f":"IFERROR(INDEX(Подробниданнизафактурата[],SMALL(IF(Подробниданнизафактурата[Фактура №]=rngФактура,ROW(Подробниданнизафактурата[])-ROW(Подробниданнизафактурата[#Headers])), ROW(8:8)), MATCH($C$8, Подробниданнизафактурата[#Headers], 0)),\"\")","v":"Фактура 3-456-2 данни 8"},{"$f":"IFERROR(INDEX(Подробниданнизафактурата[],SMALL(IF(Подробниданнизафактурата[Фактура №]=rngФактура,ROW(Подробниданнизафактурата[])-ROW(Подробниданнизафактурата[#Headers])), ROW(8:8)), MATCH($D$8, Подробниданнизафактурата[#Headers], 0)),\"\")","v":25},{"$f":"IFERROR(INDEX(Подробниданнизафактурата[],SMALL(IF(Подробниданнизафактурата[Фактура №]=rngФактура,ROW(Подробниданнизафактурата[])-ROW(Подробниданнизафактурата[#Headers])), ROW(8:8)), MATCH($E$8, Подробниданнизафактурата[#Headers], 0)),\"\")","v":{"v":4,"d":"4.00 лв."}},{"$f":"IFERROR(INDEX(Подробниданнизафактурата[],SMALL(IF(Подробниданнизафактурата[Фактура №]=rngФактура,ROW(Подробниданнизафактурата[])-ROW(Подробниданнизафактурата[#Headers])), ROW(8:8)), MATCH($F$8, Подробниданнизафактурата[#Headers], 0)),\"\")","v":0},{"v":100,"d":"100.00 лв."}]
[null,{"$f":"IFERROR(INDEX(Подробниданнизафактурата[],SMALL(IF(Подробниданнизафактурата[Фактура №]=rngФактура,ROW(Подробниданнизафактурата[])-ROW(Подробниданнизафактурата[#Headers])), ROW(9:9)), MATCH($B$8, Подробниданнизафактурата[#Headers], 0)),\"\")","v":"Z4575"},{"$f":"IFERROR(INDEX(Подробниданнизафактурата[],SMALL(IF(Подробниданнизафактурата[Фактура №]=rngФактура,ROW(Подробниданнизафактурата[])-ROW(Подробниданнизафактурата[#Headers])), ROW(9:9)), MATCH($C$8, Подробниданнизафактурата[#Headers], 0)),\"\")","v":"Фактура 3-456-2 данни 9"},{"$f":"IFERROR(INDEX(Подробниданнизафактурата[],SMALL(IF(Подробниданнизафактурата[Фактура №]=rngФактура,ROW(Подробниданнизафактурата[])-ROW(Подробниданнизафактурата[#Headers])), ROW(9:9)), MATCH($D$8, Подробниданнизафактурата[#Headers], 0)),\"\")","v":5},{"$f":"IFERROR(INDEX(Подробниданнизафактурата[],SMALL(IF(Подробниданнизафактурата[Фактура №]=rngФактура,ROW(Подробниданнизафактурата[])-ROW(Подробниданнизафактурата[#Headers])), ROW(9:9)), MATCH($E$8, Подробниданнизафактурата[#Headers], 0)),\"\")","v":{"v":7,"d":"7.00 лв."}},{"$f":"IFERROR(INDEX(Подробниданнизафактурата[],SMALL(IF(Подробниданнизафактурата[Фактура №]=rngФактура,ROW(Подробниданнизафактурата[])-ROW(Подробниданнизафактурата[#Headers])), ROW(9:9)), MATCH($F$8, Подробниданнизафактурата[#Headers], 0)),\"\")","v":{"v":3,"d":"3.00 лв."}},{"v":32,"d":"32.00 лв."}]
[null,{"$f":"IFERROR(INDEX(Подробниданнизафактурата[],SMALL(IF(Подробниданнизафактурата[Фактура №]=rngФактура,ROW(Подробниданнизафактурата[])-ROW(Подробниданнизафактурата[#Headers])), ROW(10:10)), MATCH($B$8, Подробниданнизафактурата[#Headers], 0)),\"\")","v":"Z4576"},{"$f":"IFERROR(INDEX(Подробниданнизафактурата[],SMALL(IF(Подробниданнизафактурата[Фактура №]=rngФактура,ROW(Подробниданнизафактурата[])-ROW(Подробниданнизафактурата[#Headers])), ROW(10:10)), MATCH($C$8, Подробниданнизафактурата[#Headers], 0)),\"\")","v":"Фактура 3-456-2 данни 10"},{"$f":"IFERROR(INDEX(Подробниданнизафактурата[],SMALL(IF(Подробниданнизафактурата[Фактура №]=rngФактура,ROW(Подробниданнизафактурата[])-ROW(Подробниданнизафактурата[#Headers])), ROW(10:10)), MATCH($D$8, Подробниданнизафактурата[#Headers], 0)),\"\")","v":80},{"$f":"IFERROR(INDEX(Подробниданнизафактурата[],SMALL(IF(Подробниданнизафактурата[Фактура №]=rngФактура,ROW(Подробниданнизафактурата[])-ROW(Подробниданнизафактурата[#Headers])), ROW(10:10)), MATCH($E$8, Подробниданнизафактурата[#Headers], 0)),\"\")","v":{"v":1,"d":"1.00 лв."}},{"$f":"IFERROR(INDEX(Подробниданнизафактурата[],SMALL(IF(Подробниданнизафактурата[Фактура №]=rngФактура,ROW(Подробниданнизафактурата[])-ROW(Подробниданнизафактурата[#Headers])), ROW(10:10)), MATCH($F$8, Подробниданнизафактурата[#Headers], 0)),\"\")","v":0},{"v":80,"d":"80.00 лв."}]
[null,{"$f":"IFERROR(INDEX(Подробниданнизафактурата[],SMALL(IF(Подробниданнизафактурата[Фактура №]=rngФактура,ROW(Подробниданнизафактурата[])-ROW(Подробниданнизафактурата[#Headers])), ROW(11:11)), MATCH($B$8, Подробниданнизафактурата[#Headers], 0)),\"\")","v":"Z4577"},{"$f":"IFERROR(INDEX(Подробниданнизафактурата[],SMALL(IF(Подробниданнизафактурата[Фактура №]=rngФактура,ROW(Подробниданнизафактурата[])-ROW(Подробниданнизафактурата[#Headers])), ROW(11:11)), MATCH($C$8, Подробниданнизафактурата[#Headers], 0)),\"\")","v":"Фактура 3-456-2 данни 11"},{"$f":"IFERROR(INDEX(Подробниданнизафактурата[],SMALL(IF(Подробниданнизафактурата[Фактура №]=rngФактура,ROW(Подробниданнизафактурата[])-ROW(Подробниданнизафактурата[#Headers])), ROW(11:11)), MATCH($D$8, Подробниданнизафактурата[#Headers], 0)),\"\")","v":65},{"$f":"IFERROR(INDEX(Подробниданнизафактурата[],SMALL(IF(Подробниданнизафактурата[Фактура №]=rngФактура,ROW(Подробниданнизафактурата[])-ROW(Подробниданнизафактурата[#Headers])), ROW(11:11)), MATCH($E$8, Подробниданнизафактурата[#Headers], 0)),\"\")","v":{"v":7,"d":"7.00 лв."}},{"$f":"IFERROR(INDEX(Подробниданнизафактурата[],SMALL(IF(Подробниданнизафактурата[Фактура №]=rngФактура,ROW(Подробниданнизафактурата[])-ROW(Подробниданнизафактурата[#Headers])), ROW(11:11)), MATCH($F$8, Подробниданнизафактурата[#Headers], 0)),\"\")","v":0},{"v":455,"d":"455.00 лв."}]
[null,{"$f":"IFERROR(INDEX(Подробниданнизафактурата[],SMALL(IF(Подробниданнизафактурата[Фактура №]=rngФактура,ROW(Подробниданнизафактурата[])-ROW(Подробниданнизафактурата[#Headers])), ROW(12:12)), MATCH($B$8, Подробниданнизафактурата[#Headers], 0)),\"\")","v":"Z4578"},{"$f":"IFERROR(INDEX(Подробниданнизафактурата[],SMALL(IF(Подробниданнизафактурата[Фактура №]=rngФактура,ROW(Подробниданнизафактурата[])-ROW(Подробниданнизафактурата[#Headers])), ROW(12:12)), MATCH($C$8, Подробниданнизафактурата[#Headers], 0)),\"\")","v":"Фактура 3-456-2 данни 12"},{"$f":"IFERROR(INDEX(Подробниданнизафактурата[],SMALL(IF(Подробниданнизафактурата[Фактура №]=rngФактура,ROW(Подробниданнизафактурата[])-ROW(Подробниданнизафактурата[#Headers])), ROW(12:12)), MATCH($D$8, Подробниданнизафактурата[#Headers], 0)),\"\")","v":44},{"$f":"IFERROR(INDEX(Подробниданнизафактурата[],SMALL(IF(Подробниданнизафактурата[Фактура №]=rngФактура,ROW(Подробниданнизафактурата[])-ROW(Подробниданнизафактурата[#Headers])), ROW(12:12)), MATCH($E$8, Подробниданнизафактурата[#Headers], 0)),\"\")","v":{"v":1,"d":"1.00 лв."}},{"$f":"IFERROR(INDEX(Подробниданнизафактурата[],SMALL(IF(Подробниданнизафактурата[Фактура №]=rngФактура,ROW(Подробниданнизафактурата[])-ROW(Подробниданнизафактурата[#Headers])), ROW(12:12)), MATCH($F$8, Подробниданнизафактурата[#Headers], 0)),\"\")","v":0},{"v":44,"d":"44.00 лв."}]
[null,{"$f":"IFERROR(INDEX(Подробниданнизафактурата[],SMALL(IF(Подробниданнизафактурата[Фактура №]=rngФактура,ROW(Подробниданнизафактурата[])-ROW(Подробниданнизафактурата[#Headers])), ROW(13:13)), MATCH($B$8, Подробниданнизафактурата[#Headers], 0)),\"\")","v":""},{"$f":"IFERROR(INDEX(Подробниданнизафактурата[],SMALL(IF(Подробниданнизафактурата[Фактура №]=rngФактура,ROW(Подробниданнизафактурата[])-ROW(Подробниданнизафактурата[#Headers])), ROW(13:13)), MATCH($C$8, Подробниданнизафактурата[#Headers], 0)),\"\")","v":""},{"$f":"IFERROR(INDEX(Подробниданнизафактурата[],SMALL(IF(Подробниданнизафактурата[Фактура №]=rngФактура,ROW(Подробниданнизафактурата[])-ROW(Подробниданнизафактурата[#Headers])), ROW(13:13)), MATCH($D$8, Подробниданнизафактурата[#Headers], 0)),\"\")","v":""},{"$f":"IFERROR(INDEX(Подробниданнизафактурата[],SMALL(IF(Подробниданнизафактурата[Фактура №]=rngФактура,ROW(Подробниданнизафактурата[])-ROW(Подробниданнизафактурата[#Headers])), ROW(13:13)), MATCH($E$8, Подробниданнизафактурата[#Headers], 0)),\"\")","v":""},{"$f":"IFERROR(INDEX(Подробниданнизафактурата[],SMALL(IF(Подробниданнизафактурата[Фактура №]=rngФактура,ROW(Подробниданнизафактурата[])-ROW(Подробниданнизафактурата[#Headers])), ROW(13:13)), MATCH($F$8, Подробниданнизафактурата[#Headers], 0)),\"\")","v":""},""]
[null,{"$f":"IFERROR(INDEX(Подробниданнизафактурата[],SMALL(IF(Подробниданнизафактурата[Фактура №]=rngФактура,ROW(Подробниданнизафактурата[])-ROW(Подробниданнизафактурата[#Headers])), ROW(14:14)), MATCH($B$8, Подробниданнизафактурата[#Headers], 0)),\"\")","v":""},{"$f":"IFERROR(INDEX(Подробниданнизафактурата[],SMALL(IF(Подробниданнизафактурата[Фактура №]=rngФактура,ROW(Подробниданнизафактурата[])-ROW(Подробниданнизафактурата[#Headers])), ROW(14:14)), MATCH($C$8, Подробниданнизафактурата[#Headers], 0)),\"\")","v":""},{"$f":"IFERROR(INDEX(Подробниданнизафактурата[],SMALL(IF(Подробниданнизафактурата[Фактура №]=rngФактура,ROW(Подробниданнизафактурата[])-ROW(Подробниданнизафактурата[#Headers])), ROW(14:14)), MATCH($D$8, Подробниданнизафактурата[#Headers], 0)),\"\")","v":""},{"$f":"IFERROR(INDEX(Подробниданнизафактурата[],SMALL(IF(Подробниданнизафактурата[Фактура №]=rngФактура,ROW(Подробниданнизафактурата[])-ROW(Подробниданнизафактурата[#Headers])), ROW(14:14)), MATCH($E$8, Подробниданнизафактурата[#Headers], 0)),\"\")","v":""},{"$f":"IFERROR(INDEX(Подробниданнизафактурата[],SMALL(IF(Подробниданнизафактурата[Фактура №]=rngФактура,ROW(Подробниданнизафактурата[])-ROW(Подробниданнизафактурата[#Headers])), ROW(14:14)), MATCH($F$8, Подробниданнизафактурата[#Headers], 0)),\"\")","v":""},""]
[null,{"$f":"IFERROR(INDEX(Подробниданнизафактурата[],SMALL(IF(Подробниданнизафактурата[Фактура №]=rngФактура,ROW(Подробниданнизафактурата[])-ROW(Подробниданнизафактурата[#Headers])), ROW(15:15)), MATCH($B$8, Подробниданнизафактурата[#Headers], 0)),\"\")","v":""},{"$f":"IFERROR(INDEX(Подробниданнизафактурата[],SMALL(IF(Подробниданнизафактурата[Фактура №]=rngФактура,ROW(Подробниданнизафактурата[])-ROW(Подробниданнизафактурата[#Headers])), ROW(15:15)), MATCH($C$8, Подробниданнизафактурата[#Headers], 0)),\"\")","v":""},{"$f":"IFERROR(INDEX(Подробниданнизафактурата[],SMALL(IF(Подробниданнизафактурата[Фактура №]=rngФактура,ROW(Подробниданнизафактурата[])-ROW(Подробниданнизафактурата[#Headers])), ROW(15:15)), MATCH($D$8, Подробниданнизафактурата[#Headers], 0)),\"\")","v":""},{"$f":"IFERROR(INDEX(Подробниданнизафактурата[],SMALL(IF(Подробниданнизафактурата[Фактура №]=rngФактура,ROW(Подробниданнизафактурата[])-ROW(Подробниданнизафактурата[#Headers])), ROW(15:15)), MATCH($E$8, Подробниданнизафактурата[#Headers], 0)),\"\")","v":""},{"$f":"IFERROR(INDEX(Подробниданнизафактурата[],SMALL(IF(Подробниданнизафактурата[Фактура №]=rngФактура,ROW(Подробниданнизафактурата[])-ROW(Подробниданнизафактурата[#Headers])), ROW(15:15)), MATCH($F$8, Подробниданнизафактурата[#Headers], 0)),\"\")","v":""},""]
[null,{"$f":"IFERROR(INDEX(Подробниданнизафактурата[],SMALL(IF(Подробниданнизафактурата[Фактура №]=rngФактура,ROW(Подробниданнизафактурата[])-ROW(Подробниданнизафактурата[#Headers])), ROW(16:16)), MATCH($B$8, Подробниданнизафактурата[#Headers], 0)),\"\")","v":""},{"$f":"IFERROR(INDEX(Подробниданнизафактурата[],SMALL(IF(Подробниданнизафактурата[Фактура №]=rngФактура,ROW(Подробниданнизафактурата[])-ROW(Подробниданнизафактурата[#Headers])), ROW(16:16)), MATCH($C$8, Подробниданнизафактурата[#Headers], 0)),\"\")","v":""},{"$f":"IFERROR(INDEX(Подробниданнизафактурата[],SMALL(IF(Подробниданнизафактурата[Фактура №]=rngФактура,ROW(Подробниданнизафактурата[])-ROW(Подробниданнизафактурата[#Headers])), ROW(16:16)), MATCH($D$8, Подробниданнизафактурата[#Headers], 0)),\"\")","v":""},{"$f":"IFERROR(INDEX(Подробниданнизафактурата[],SMALL(IF(Подробниданнизафактурата[Фактура №]=rngФактура,ROW(Подробниданнизафактурата[])-ROW(Подробниданнизафактурата[#Headers])), ROW(16:16)), MATCH($E$8, Подробниданнизафактурата[#Headers], 0)),\"\")","v":""},{"$f":"IFERROR(INDEX(Подробниданнизафактурата[],SMALL(IF(Подробниданнизафактурата[Фактура №]=rngФактура,ROW(Подробниданнизафактурата[])-ROW(Подробниданнизафактурата[#Headers])), ROW(16:16)), MATCH($F$8, Подробниданнизафактурата[#Headers], 0)),\"\")","v":""},""]
[null,{"$f":"IFERROR(INDEX(Подробниданнизафактурата[],SMALL(IF(Подробниданнизафактурата[Фактура №]=rngФактура,ROW(Подробниданнизафактурата[])-ROW(Подробниданнизафактурата[#Headers])), ROW(17:17)), MATCH($B$8, Подробниданнизафактурата[#Headers], 0)),\"\")","v":""},{"$f":"IFERROR(INDEX(Подробниданнизафактурата[],SMALL(IF(Подробниданнизафактурата[Фактура №]=rngФактура,ROW(Подробниданнизафактурата[])-ROW(Подробниданнизафактурата[#Headers])), ROW(17:17)), MATCH($C$8, Подробниданнизафактурата[#Headers], 0)),\"\")","v":""},{"$f":"IFERROR(INDEX(Подробниданнизафактурата[],SMALL(IF(Подробниданнизафактурата[Фактура №]=rngФактура,ROW(Подробниданнизафактурата[])-ROW(Подробниданнизафактурата[#Headers])), ROW(17:17)), MATCH($D$8, Подробниданнизафактурата[#Headers], 0)),\"\")","v":""},{"$f":"IFERROR(INDEX(Подробниданнизафактурата[],SMALL(IF(Подробниданнизафактурата[Фактура №]=rngФактура,ROW(Подробниданнизафактурата[])-ROW(Подробниданнизафактурата[#Headers])), ROW(17:17)), MATCH($E$8, Подробниданнизафактурата[#Headers], 0)),\"\")","v":""},{"$f":"IFERROR(INDEX(Подробниданнизафактурата[],SMALL(IF(Подробниданнизафактурата[Фактура №]=rngФактура,ROW(Подробниданнизафактурата[])-ROW(Подробниданнизафактурата[#Headers])), ROW(17:17)), MATCH($F$8, Подробниданнизафактурата[#Headers], 0)),\"\")","v":""},""]
[null,{"$f":"IFERROR(INDEX(Подробниданнизафактурата[],SMALL(IF(Подробниданнизафактурата[Фактура №]=rngФактура,ROW(Подробниданнизафактурата[])-ROW(Подробниданнизафактурата[#Headers])), ROW(18:18)), MATCH($B$8, Подробниданнизафактурата[#Headers], 0)),\"\")","v":""},{"$f":"IFERROR(INDEX(Подробниданнизафактурата[],SMALL(IF(Подробниданнизафактурата[Фактура №]=rngФактура,ROW(Подробниданнизафактурата[])-ROW(Подробниданнизафактурата[#Headers])), ROW(18:18)), MATCH($C$8, Подробниданнизафактурата[#Headers], 0)),\"\")","v":""},{"$f":"IFERROR(INDEX(Подробниданнизафактурата[],SMALL(IF(Подробниданнизафактурата[Фактура №]=rngФактура,ROW(Подробниданнизафактурата[])-ROW(Подробниданнизафактурата[#Headers])), ROW(18:18)), MATCH($D$8, Подробниданнизафактурата[#Headers], 0)),\"\")","v":""},{"$f":"IFERROR(INDEX(Подробниданнизафактурата[],SMALL(IF(Подробниданнизафактурата[Фактура №]=rngФактура,ROW(Подробниданнизафактурата[])-ROW(Подробниданнизафактурата[#Headers])), ROW(18:18)), MATCH($E$8, Подробниданнизафактурата[#Headers], 0)),\"\")","v":""},{"$f":"IFERROR(INDEX(Подробниданнизафактурата[],SMALL(IF(Подробниданнизафактурата[Фактура №]=rngФактура,ROW(Подробниданнизафактурата[])-ROW(Подробниданнизафактурата[#Headers])), ROW(18:18)), MATCH($F$8, Подробниданнизафактурата[#Headers], 0)),\"\")","v":""},""]
[null,{"$f":"IFERROR(INDEX(Подробниданнизафактурата[],SMALL(IF(Подробниданнизафактурата[Фактура №]=rngФактура,ROW(Подробниданнизафактурата[])-ROW(Подробниданнизафактурата[#Headers])), ROW(19:19)), MATCH($B$8, Подробниданнизафактурата[#Headers], 0)),\"\")","v":""},{"$f":"IFERROR(INDEX(Подробниданнизафактурата[],SMALL(IF(Подробниданнизафактурата[Фактура №]=rngФактура,ROW(Подробниданнизафактурата[])-ROW(Подробниданнизафактурата[#Headers])), ROW(19:19)), MATCH($C$8, Подробниданнизафактурата[#Headers], 0)),\"\")","v":""},{"$f":"IFERROR(INDEX(Подробниданнизафактурата[],SMALL(IF(Подробниданнизафактурата[Фактура №]=rngФактура,ROW(Подробниданнизафактурата[])-ROW(Подробниданнизафактурата[#Headers])), ROW(19:19)), MATCH($D$8, Подробниданнизафактурата[#Headers], 0)),\"\")","v":""},{"$f":"IFERROR(INDEX(Подробниданнизафактурата[],SMALL(IF(Подробниданнизафактурата[Фактура №]=rngФактура,ROW(Подробниданнизафактурата[])-ROW(Подробниданнизафактурата[#Headers])), ROW(19:19)), MATCH($E$8, Подробниданнизафактурата[#Headers], 0)),\"\")","v":""},{"$f":"IFERROR(INDEX(Подробниданнизафактурата[],SMALL(IF(Подробниданнизафактурата[Фактура №]=rngФактура,ROW(Подробниданнизафактурата[])-ROW(Подробниданнизафактурата[#Headers])), ROW(19:19)), MATCH($F$8, Подробниданнизафактурата[#Headers], 0)),\"\")","v":""},""]
[null,{"$f":"IFERROR(INDEX(Подробниданнизафактурата[],SMALL(IF(Подробниданнизафактурата[Фактура №]=rngФактура,ROW(Подробниданнизафактурата[])-ROW(Подробниданнизафактурата[#Headers])), ROW(20:20)), MATCH($B$8, Подробниданнизафактурата[#Headers], 0)),\"\")","v":""},{"$f":"IFERROR(INDEX(Подробниданнизафактурата[],SMALL(IF(Подробниданнизафактурата[Фактура №]=rngФактура,ROW(Подробниданнизафактурата[])-ROW(Подробниданнизафактурата[#Headers])), ROW(20:20)), MATCH($C$8, Подробниданнизафактурата[#Headers], 0)),\"\")","v":""},{"$f":"IFERROR(INDEX(Подробниданнизафактурата[],SMALL(IF(Подробниданнизафактурата[Фактура №]=rngФактура,ROW(Подробниданнизафактурата[])-ROW(Подробниданнизафактурата[#Headers])), ROW(20:20)), MATCH($D$8, Подробниданнизафактурата[#Headers], 0)),\"\")","v":""},{"$f":"IFERROR(INDEX(Подробниданнизафактурата[],SMALL(IF(Подробниданнизафактурата[Фактура №]=rngФактура,ROW(Подробниданнизафактурата[])-ROW(Подробниданнизафактурата[#Headers])), ROW(20:20)), MATCH($E$8, Подробниданнизафактурата[#Headers], 0)),\"\")","v":""},{"$f":"IFERROR(INDEX(Подробниданнизафактурата[],SMALL(IF(Подробниданнизафактурата[Фактура №]=rngФактура,ROW(Подробниданнизафактурата[])-ROW(Подробниданнизафактурата[#Headers])), ROW(20:20)), MATCH($F$8, Подробниданнизафактурата[#Headers], 0)),\"\")","v":""},""]
[null,{"$f":"IFERROR(INDEX(Подробниданнизафактурата[],SMALL(IF(Подробниданнизафактурата[Фактура №]=rngФактура,ROW(Подробниданнизафактурата[])-ROW(Подробниданнизафактурата[#Headers])), ROW(21:21)), MATCH($B$8, Подробниданнизафактурата[#Headers], 0)),\"\")","v":""},{"$f":"IFERROR(INDEX(Подробниданнизафактурата[],SMALL(IF(Подробниданнизафактурата[Фактура №]=rngФактура,ROW(Подробниданнизафактурата[])-ROW(Подробниданнизафактурата[#Headers])), ROW(21:21)), MATCH($C$8, Подробниданнизафактурата[#Headers], 0)),\"\")","v":""},{"$f":"IFERROR(INDEX(Подробниданнизафактурата[],SMALL(IF(Подробниданнизафактурата[Фактура №]=rngФактура,ROW(Подробниданнизафактурата[])-ROW(Подробниданнизафактурата[#Headers])), ROW(21:21)), MATCH($D$8, Подробниданнизафактурата[#Headers], 0)),\"\")","v":""},{"$f":"IFERROR(INDEX(Подробниданнизафактурата[],SMALL(IF(Подробниданнизафактурата[Фактура №]=rngФактура,ROW(Подробниданнизафактурата[])-ROW(Подробниданнизафактурата[#Headers])), ROW(21:21)), MATCH($E$8, Подробниданнизафактурата[#Headers], 0)),\"\")","v":""},{"$f":"IFERROR(INDEX(Подробниданнизафактурата[],SMALL(IF(Подробниданнизафактурата[Фактура №]=rngФактура,ROW(Подробниданнизафактурата[])-ROW(Подробниданнизафактурата[#Headers])), ROW(21:21)), MATCH($F$8, Подробниданнизафактурата[#Headers], 0)),\"\")","v":""},""]
[null,{"$f":"IFERROR(INDEX(Подробниданнизафактурата[],SMALL(IF(Подробниданнизафактурата[Фактура №]=rngФактура,ROW(Подробниданнизафактурата[])-ROW(Подробниданнизафактурата[#Headers])), ROW(22:22)), MATCH($B$8, Подробниданнизафактурата[#Headers], 0)),\"\")","v":""},{"$f":"IFERROR(INDEX(Подробниданнизафактурата[],SMALL(IF(Подробниданнизафактурата[Фактура №]=rngФактура,ROW(Подробниданнизафактурата[])-ROW(Подробниданнизафактурата[#Headers])), ROW(22:22)), MATCH($C$8, Подробниданнизафактурата[#Headers], 0)),\"\")","v":""},{"$f":"IFERROR(INDEX(Подробниданнизафактурата[],SMALL(IF(Подробниданнизафактурата[Фактура №]=rngФактура,ROW(Подробниданнизафактурата[])-ROW(Подробниданнизафактурата[#Headers])), ROW(22:22)), MATCH($D$8, Подробниданнизафактурата[#Headers], 0)),\"\")","v":""},{"$f":"IFERROR(INDEX(Подробниданнизафактурата[],SMALL(IF(Подробниданнизафактурата[Фактура №]=rngФактура,ROW(Подробниданнизафактурата[])-ROW(Подробниданнизафактурата[#Headers])), ROW(22:22)), MATCH($E$8, Подробниданнизафактурата[#Headers], 0)),\"\")","v":""},{"$f":"IFERROR(INDEX(Подробниданнизафактурата[],SMALL(IF(Подробниданнизафактурата[Фактура №]=rngФактура,ROW(Подробниданнизафактурата[])-ROW(Подробниданнизафактурата[#Headers])), ROW(22:22)), MATCH($F$8, Подробниданнизафактурата[#Headers], 0)),\"\")","v":""},""]
[null,{"$f":"IFERROR(INDEX(Подробниданнизафактурата[],SMALL(IF(Подробниданнизафактурата[Фактура №]=rngФактура,ROW(Подробниданнизафактурата[])-ROW(Подробниданнизафактурата[#Headers])), ROW(23:23)), MATCH($B$8, Подробниданнизафактурата[#Headers], 0)),\"\")","v":""},{"$f":"IFERROR(INDEX(Подробниданнизафактурата[],SMALL(IF(Подробниданнизафактурата[Фактура №]=rngФактура,ROW(Подробниданнизафактурата[])-ROW(Подробниданнизафактурата[#Headers])), ROW(23:23)), MATCH($C$8, Подробниданнизафактурата[#Headers], 0)),\"\")","v":""},{"$f":"IFERROR(INDEX(Подробниданнизафактурата[],SMALL(IF(Подробниданнизафактурата[Фактура №]=rngФактура,ROW(Подробниданнизафактурата[])-ROW(Подробниданнизафактурата[#Headers])), ROW(23:23)), MATCH($D$8, Подробниданнизафактурата[#Headers], 0)),\"\")","v":""},{"$f":"IFERROR(INDEX(Подробниданнизафактурата[],SMALL(IF(Подробниданнизафактурата[Фактура №]=rngФактура,ROW(Подробниданнизафактурата[])-ROW(Подробниданнизафактурата[#Headers])), ROW(23:23)), MATCH($E$8, Подробниданнизафактурата[#Headers], 0)),\"\")","v":""},{"$f":"IFERROR(INDEX(Подробниданнизафактурата[],SMALL(IF(Подробниданнизафактурата[Фактура №]=rngФактура,ROW(Подробниданнизафактурата[])-ROW(Подробниданнизафактурата[#Headers])), ROW(23:23)), MATCH($F$8, Подробниданнизафактурата[#Headers], 0)),\"\")","v":""},""]
[null,{"$f":"IFERROR(INDEX(Подробниданнизафактурата[],SMALL(IF(Подробниданнизафактурата[Фактура №]=rngФактура,ROW(Подробниданнизафактурата[])-ROW(Подробниданнизафактурата[#Headers])), ROW(24:24)), MATCH($B$8, Подробниданнизафактурата[#Headers], 0)),\"\")","v":""},{"$f":"IFERROR(INDEX(Подробниданнизафактурата[],SMALL(IF(Подробниданнизафактурата[Фактура №]=rngФактура,ROW(Подробниданнизафактурата[])-ROW(Подробниданнизафактурата[#Headers])), ROW(24:24)), MATCH($C$8, Подробниданнизафактурата[#Headers], 0)),\"\")","v":""},{"$f":"IFERROR(INDEX(Подробниданнизафактурата[],SMALL(IF(Подробниданнизафактурата[Фактура №]=rngФактура,ROW(Подробниданнизафактурата[])-ROW(Подробниданнизафактурата[#Headers])), ROW(24:24)), MATCH($D$8, Подробниданнизафактурата[#Headers], 0)),\"\")","v":""},{"$f":"IFERROR(INDEX(Подробниданнизафактурата[],SMALL(IF(Подробниданнизафактурата[Фактура №]=rngФактура,ROW(Подробниданнизафактурата[])-ROW(Подробниданнизафактурата[#Headers])), ROW(24:24)), MATCH($E$8, Подробниданнизафактурата[#Headers], 0)),\"\")","v":""},{"$f":"IFERROR(INDEX(Подробниданнизафактурата[],SMALL(IF(Подробниданнизафактурата[Фактура №]=rngФактура,ROW(Подробниданнизафактурата[])-ROW(Подробниданнизафактурата[#Headers])), ROW(24:24)), MATCH($F$8, Подробниданнизафактурата[#Headers], 0)),\"\")","v":""},""]
[null,{"$f":"IFERROR(INDEX(Подробниданнизафактурата[],SMALL(IF(Подробниданнизафактурата[Фактура №]=rngФактура,ROW(Подробниданнизафактурата[])-ROW(Подробниданнизафактурата[#Headers])), ROW(25:25)), MATCH($B$8, Подробниданнизафактурата[#Headers], 0)),\"\")","v":""},{"$f":"IFERROR(INDEX(Подробниданнизафактурата[],SMALL(IF(Подробниданнизафактурата[Фактура №]=rngФактура,ROW(Подробниданнизафактурата[])-ROW(Подробниданнизафактурата[#Headers])), ROW(25:25)), MATCH($C$8, Подробниданнизафактурата[#Headers], 0)),\"\")","v":""},{"$f":"IFERROR(INDEX(Подробниданнизафактурата[],SMALL(IF(Подробниданнизафактурата[Фактура №]=rngФактура,ROW(Подробниданнизафактурата[])-ROW(Подробниданнизафактурата[#Headers])), ROW(25:25)), MATCH($D$8, Подробниданнизафактурата[#Headers], 0)),\"\")","v":""},{"$f":"IFERROR(INDEX(Подробниданнизафактурата[],SMALL(IF(Подробниданнизафактурата[Фактура №]=rngФактура,ROW(Подробниданнизафактурата[])-ROW(Подробниданнизафактурата[#Headers])), ROW(25:25)), MATCH($E$8, Подробниданнизафактурата[#Headers], 0)),\"\")","v":""},{"$f":"IFERROR(INDEX(Подробниданнизафактурата[],SMALL(IF(Подробниданнизафактурата[Фактура №]=rngФактура,ROW(Подробниданнизафактурата[])-ROW(Подробниданнизафактурата[#Headers])), ROW(25:25)), MATCH($F$8, Подробниданнизафактурата[#Headers], 0)),\"\")","v":""},""]
[{"$nulls":5},"Междинна сума по фактурата",{"$f":"SUM(ФактураПроект[Цена])","v":{"v":2014,"d":"2,014.00 лв."}}]
[{"$nulls":5},"Данъчна ставка",{"$f":"VLOOKUP(rngФактура,ФактуриОсновен[],5)","v":{"v":0.0875,"d":"8.75%"}}]
[{"$nulls":5},"ДДС",{"$f":"G34*G35","v":{"v":176.225,"d":"176.23 лв."}}]
[{"$nulls":5},"Други",{"$f":"VLOOKUP(rngФактура,ФактуриОсновен[],6)","v":0}]
[null,{"$f":"\"Направи всички чекове платими на \"&ИмеНаФирма&\".\"","v":"Направи всички чекове платими на Име на фирма."},{"$nulls":3},"Получено капаро",{"$f":"VLOOKUP(rngФактура,ФактуриОсновен[],7)","v":0}]
[null,"Общата сума е дължима след <#> дни. Просрочените сметки подлежат на служебна такса от <#>% месечно.",{"$nulls":3},"Общо",{"$f":"(G34+G36+G37)-G38","v":{"v":2190.225,"d":"2,190.23 лв."}}]

{"sheet":"Клиенти","index":1,"n_rows":6,"n_cols":12,"rows_kept":6}
[]
[null,null,"Клиенти"]
[null,"Търсене","Фирма №","Име на фирма","Име на контакт","Адрес","Град","Област","Пощенски код","Телефон","Имейл","Факс"]
[null,{"$f":"C4& \" - \"&D4","v":"1 - Tailspin Toys "},1,"Tailspin Toys ","Роберт Лион","ул. Вишнева 12","София","София","123456","432-555-0178","someone@example.com","432-555-0187"]
[null,"2 - Contoso, Ltd",2,"Contoso, Ltd","Санджай Пател","ул. Орехова градина 567","Велико Търново","Велико Търново","098765","432-555-0179","someone@example.com","432-555-0123"]
[null,"Общо",{"$f":"\"Общо клиенти: \"&SUBTOTAL(103,СписъкКлиенти[Фирма №])","v":"Общо клиенти: 2"}]

{"sheet":"Фактури – основен","index":2,"n_rows":6,"n_cols":11,"rows_kept":6}
[]
[null,"Фактури"]
[null,"Фактура №","Фирма","Дата на фактура","Описание на проекта","Данъчна ставка","Други","Депозит","Обща информация","Обща сума за фактурата","Бележки"]
[null,"3-456-1","1 - Tailspin Toys ",{"$f":"TODAY()","v":{"v":43677,"d":"4367700.00%"}},"Проект 1",{"v":0.0875,"d":"8.75%"},{"v":100,"d":"100.00 лв."},{"v":100,"d":"100.00 лв."},{"$f":"SUMIF(Подробниданнизафактурата[Фактура №],\"=\"&ФактуриОсновен[[#This Row],[Фактура №]],Подробниданнизафактурата[Общо])","v":{"v":5200,"d":"5,200.00 лв."}},{"$f":"(ФактуриОсновен[[#This Row],[Обща информация]]*(1+ФактуриОсновен[[#This Row],[Данъчна ставка]]))+ФактуриОсновен[[#This Row],[Други]]-ФактуриОсновен[[#This Row],[Депозит]]","v":{"v":5654.999999999999,"d":"5,655.00 лв."}}]
[null,"3-456-2","2 - Contoso, Ltd",{"$f":"TODAY()+10","v":{"v":43687,"d":"4368700.00%"}},"Проект 2",{"v":0.0875,"d":"8.75%"},null,null,{"$f":"SUMIF(Подробниданнизафактурата[Фактура №],\"=\"&ФактуриОсновен[[#This Row],[Фактура №]],Подробниданнизафактурата[Общо])","v":{"v":2014,"d":"2,014.00 лв."}},{"$f":"(ФактуриОсновен[[#This Row],[Обща информация]]*(1+ФактуриОсновен[[#This Row],[Данъчна ставка]]))+ФактуриОсновен[[#This Row],[Други]]-ФактуриОсновен[[#This Row],[Депозит]]","v":{"v":2190.225,"d":"2,190.23 лв."}}]
[null,"Общо",{"$f":"\"Общо фактури: \"&SUBTOTAL(103,ФактуриОсновен[Фактура №])","v":"Общо фактури: 2"},{"$nulls":3},{"$f":"SUBTOTAL(109,ФактуриОсновен[Други])","v":{"v":100,"d":"100.00 лв."}},{"$f":"SUBTOTAL(109,ФактуриОсновен[Депозит])","v":{"v":100,"d":"100.00 лв."}},{"$f":"SUBTOTAL(109,ФактуриОсновен[Обща информация])","v":{"v":7214,"d":"7,214.00 лв."}},{"$f":"SUBTOTAL(109,ФактуриОсновен[Обща сума за фактурата])","v":{"v":7845.2249999999985,"d":"7,845.23 лв."}}]

{"sheet":"Подробни данни за фактурата","index":3,"n_rows":40,"n_cols":8,"rows_kept":40}
[]
[null,"Подробни данни за фактурата"]
[null,"Описание","Фактура №","Артикул №","Кол-во","Единична цена","Отстъпка","Общо"]
[null,"Фактура 3-456-1 данни 1","3-456-1",1,{"v":1,"d":"1 "},{"v":1,"d":"1.00 лв."},{"v":1,"d":"1.00 лв."},{"$f":"(Подробниданнизафактурата[[#This Row],[Кол-во]]*Подробниданнизафактурата[[#This Row],[Единична цена]])-Подробниданнизафактурата[[#This Row],[Отстъпка]]","v":{"v":0,"d":"0.00 лв."}}]
[null,"Фактура 3-456-1 данни 2","3-456-1",2,{"v":2,"d":"2 "},{"v":2,"d":"2.00 лв."},{"v":2,"d":"2.00 лв."},{"$f":"(Подробниданнизафактурата[[#This Row],[Кол-во]]*Подробниданнизафактурата[[#This Row],[Единична цена]])-Подробниданнизафактурата[[#This Row],[Отстъпка]]","v":{"v":2,"d":"2.00 лв."}}]
[null,"Фактура 3-456-1 данни 3","3-456-1",3,{"v":3,"d":"3 "},{"v":3,"d":"3.00 лв."},{"v":3,"d":"3.00 лв."},{"$f":"(Подробниданнизафактурата[[#This Row],[Кол-во]]*Подробниданнизафактурата[[#This Row],[Единична цена]])-Подробниданнизафактурата[[#This Row],[Отстъпка]]","v":{"v":6,"d":"6.00 лв."}}]
[null,"Фактура 3-456-1 данни 4","3-456-1",4,{"v":4,"d":"4 "},{"v":4,"d":"4.00 лв."},{"v":4,"d":"4.00 лв."},{"$f":"(Подробниданнизафактурата[[#This Row],[Кол-во]]*Подробниданнизафактурата[[#This Row],[Единична цена]])-Подробниданнизафактурата[[#This Row],[Отстъпка]]","v":{"v":12,"d":"12.00 лв."}}]
[null,"Фактура 3-456-1 данни 5","3-456-1",5,{"v":5,"d":"5 "},{"v":5,"d":"5.00 лв."},{"v":5,"d":"5.00 лв."},{"$f":"(Подробниданнизафактурата[[#This Row],[Кол-во]]*Подробниданнизафактурата[[#This Row],[Единична цена]])-Подробниданнизафактурата[[#This Row],[Отстъпка]]","v":{"v":20,"d":"20.00 лв."}}]
[null,"Фактура 3-456-1 данни 6","3-456-1",6,{"v":6,"d":"6 "},{"v":6,"d":"6.00 лв."},{"v":6,"d":"6.00 лв."},{"$f":"(Подробниданнизафактурата[[#This Row],[Кол-во]]*Подробниданнизафактурата[[#This Row],[Единична цена]])-Подробниданнизафактурата[[#This Row],[Отстъпка]]","v":{"v":30,"d":"30.00 лв."}}]
[null,"Фактура 3-456-1 данни 7","3-456-1",7,{"v":7,"d":"7 "},{"v":7,"d":"7.00 лв."},{"v":7,"d":"7.00 лв."},{"$f":"(Подробниданнизафактурата[[#This Row],[Кол-во]]*Подробниданнизафактурата[[#This Row],[Единична цена]])-Подробниданнизафактурата[[#This Row],[Отстъпка]]","v":{"v":42,"d":"42.00 лв."}}]
[null,"Фактура 3-456-1 данни 8","3-456-1",8,{"v":8,"d":"8 "},{"v":8,"d":"8.00 лв."},{"v":8,"d":"8.00 лв."},{"$f":"(Подробниданнизафактурата[[#This Row],[Кол-во]]*Подробниданнизафактурата[[#This Row],[Единична цена]])-Подробниданнизафактурата[[#This Row],[Отстъпка]]","v":{"v":56,"d":"56.00 лв."}}]
[null,"Фактура 3-456-1 данни 9","3-456-1",9,{"v":9,"d":"9 "},{"v":9,"d":"9.00 лв."},{"v":9,"d":"9.00 лв."},{"$f":"(Подробниданнизафактурата[[#This Row],[Кол-во]]*Подробниданнизафактурата[[#This Row],[Единична цена]])-Подробниданнизафактурата[[#This Row],[Отстъпка]]","v":{"v":72,"d":"72.00 лв."}}]
[null,"Фактура 3-456-1 данни 10","3-456-1",10,{"v":10,"d":"10 "},{"v":10,"d":"10.00 лв."},{"v":10,"d":"10.00 лв."},{"$f":"(Подробниданнизафактурата[[#This Row],[Кол-во]]*Подробниданнизафактурата[[#This Row],[Единична цена]])-Подробниданнизафактурата[[#This Row],[Отстъпка]]","v":{"v":90,"d":"90.00 лв."}}]
[null,"Фактура 3-456-1 данни 11","3-456-1",11,{"v":11,"d":"11 "},{"v":11,"d":"11.00 лв."},{"v":11,"d":"11.00 лв."},{"$f":"(Подробниданнизафактурата[[#This Row],[Кол-во]]*Подробниданнизафактурата[[#This Row],[Единична цена]])-Подробниданнизафактурата[[#This Row],[Отстъпка]]","v":{"v":110,"d":"110.00 лв."}}]
[null,"Фактура 3-456-1 данни 12","3-456-1",12,{"v":12,"d":"12 "},{"v":12,"d":"12.00 лв."},{"v":12,"d":"12.00 лв."},{"$f":"(Подробниданнизафактурата[[#This Row],[Кол-во]]*Подробниданнизафактурата[[#This Row],[Единична цена]])-Подробниданнизафактурата[[#This Row],[Отстъпка]]","v":{"v":132,"d":"132.00 лв."}}]
[null,"Фактура 3-456-1 данни 13","3-456-1",13,{"v":13,"d":"13 "},{"v":13,"d":"13.00 лв."},{"v":13,"d":"13.00 лв."},{"$f":"(Подробниданнизафактурата[[#This Row],[Кол-во]]*Подробниданнизафактурата[[#This Row],[Единична цена]])-Подробниданнизафактурата[[#This Row],[Отстъпка]]","v":{"v":156,"d":"156.00 лв."}}]
[null,"Фактура 3-456-1 данни 14","3-456-1",14,{"v":14,"d":"14 "},{"v":14,"d":"14.00 лв."},{"v":14,"d":"14.00 лв."},{"$f":"(Подробниданнизафактурата[[#This Row],[Кол-во]]*Подробниданнизафактурата[[#This Row],[Единична цена]])-Подробниданнизафактурата[[#This Row],[Отстъпка]]","v":{"v":182,"d":"182.00 лв."}}]
[null,"Фактура 3-456-1 данни 15","3-456-1",15,{"v":15,"d":"15 "},{"v":15,"d":"15.00 лв."},{"v":15,"d":"15.00 лв."},{"$f":"(Подробниданнизафактурата[[#This Row],[Кол-во]]*Подробниданнизафактурата[[#This Row],[Единична цена]])-Подробниданнизафактурата[[#This Row],[Отстъпка]]","v":{"v":210,"d":"210.00 лв."}}]
[null,"Фактура 3-456-1 данни 16","3-456-1",16,{"v":16,"d":"16 "},{"v":16,"d":"16.00 лв."},{"v":16,"d":"16.00 лв."},{"$f":"(Подробниданнизафактурата[[#This Row],[Кол-во]]*Подробниданнизафактурата[[#This Row],[Единична цена]])-Подробниданнизафактурата[[#This Row],[Отстъпка]]","v":{"v":240,"d":"240.00 лв."}}]
[null,"Фактура 3-456-1 данни 17","3-456-1",17,{"v":17,"d":"17 "},{"v":17,"d":"17.00 лв."},{"v":17,"d":"17.00 лв."},{"$f":"(Подробниданнизафактурата[[#This Row],[Кол-во]]*Подробниданнизафактурата[[#This Row],[Единична цена]])-Подробниданнизафактурата[[#This Row],[Отстъпка]]","v":{"v":272,"d":"272.00 лв."}}]
[null,"Фактура 3-456-1 данни 18","3-456-1",18,{"v":18,"d":"18 "},{"v":18,"d":"18.00 лв."},{"v":18,"d":"18.00 лв."},{"$f":"(Подробниданнизафактурата[[#This Row],[Кол-во]]*Подробниданнизафактурата[[#This Row],[Единична цена]])-Подробниданнизафактурата[[#This Row],[Отстъпка]]","v":{"v":306,"d":"306.00 лв."}}]
[null,"Фактура 3-456-1 данни 19","3-456-1",19,{"v":19,"d":"19 "},{"v":19,"d":"19.00 лв."},{"v":19,"d":"19.00 лв."},{"$f":"(Подробниданнизафактурата[[#This Row],[Кол-во]]*Подробниданнизафактурата[[#This Row],[Единична цена]])-Подробниданнизафактурата[[#This Row],[Отстъпка]]","v":{"v":342,"d":"342.00 лв."}}]
[null,"Фактура 3-456-1 данни 20","3-456-1",20,{"v":20,"d":"20 "},{"v":20,"d":"20.00 лв."},{"v":20,"d":"20.00 лв."},{"$f":"(Подробниданнизафактурата[[#This Row],[Кол-во]]*Подробниданнизафактурата[[#This Row],[Единична цена]])-Подробниданнизафактурата[[#This Row],[Отстъпка]]","v":{"v":380,"d":"380.00 лв."}}]
[null,"Фактура 3-456-1 данни 21","3-456-1",21,{"v":21,"d":"21 "},{"v":21,"d":"21.00 лв."},{"v":21,"d":"21.00 лв."},{"$f":"(Подробниданнизафактурата[[#This Row],[Кол-во]]*Подробниданнизафактурата[[#This Row],[Единична цена]])-Подробниданнизафактурата[[#This Row],[Отстъпка]]","v":{"v":420,"d":"420.00 лв."}}]
[null,"Фактура 3-456-1 данни 22","3-456-1",22,{"v":22,"d":"22 "},{"v":22,"d":"22.00 лв."},{"v":22,"d":"22.00 лв."},{"$f":"(Подробниданнизафактурата[[#This Row],[Кол-во]]*Подробниданнизафактурата[[#This Row],[Единична цена]])-Подробниданнизафактурата[[#This Row],[Отстъпка]]","v":{"v":462,"d":"462.00 лв."}}]
[null,"Фактура 3-456-1 данни 23","3-456-1",23,{"v":23,"d":"23 "},{"v":23,"d":"23.00 лв."},{"v":23,"d":"23.00 лв."},{"$f":"(Подробниданнизафактурата[[#This Row],[Кол-во]]*Подробниданнизафактурата[[#This Row],[Единична цена]])-Подробниданнизафактурата[[#This Row],[Отстъпка]]","v":{"v":506,"d":"506.00 лв."}}]
[null,"Фактура 3-456-1 данни 24","3-456-1",24,{"v":24,"d":"24 "},{"v":24,"d":"24.00 лв."},{"v":24,"d":"24.00 лв."},{"$f":"(Подробниданнизафактурата[[#This Row],[Кол-во]]*Подробниданнизафактурата[[#This Row],[Единична цена]])-Подробниданнизафактурата[[#This Row],[Отстъпка]]","v":{"v":552,"d":"552.00 лв."}}]
[null,"Фактура 3-456-1 данни 25","3-456-1",25,{"v":25,"d":"25 "},{"v":25,"d":"25.00 лв."},{"v":25,"d":"25.00 лв."},{"$f":"(Подробниданнизафактурата[[#This Row],[Кол-во]]*Подробниданнизафактурата[[#This Row],[Единична цена]])-Подробниданнизафактурата[[#This Row],[Отстъпка]]","v":{"v":600,"d":"600.00 лв."}}]
[null,"Фактура 3-456-2 данни 1","3-456-2","Z4567",{"v":39,"d":"39 "},{"v":5,"d":"5.00 лв."},null,{"$f":"(Подробниданнизафактурата[[#This Row],[Кол-во]]*Подробниданнизафактурата[[#This Row],[Единична цена]])-Подробниданнизафактурата[[#This Row],[Отстъпка]]","v":{"v":195,"d":"195.00 лв."}}]
[null,"Фактура 3-456-2 данни 2","3-456-2","Z4568",{"v":40,"d":"40 "},{"v":4,"d":"4.00 лв."},{"v":5,"d":"5.00 лв."},{"$f":"(Подробниданнизафактурата[[#This Row],[Кол-во]]*Подробниданнизафактурата[[#This Row],[Единична цена]])-Подробниданнизафактурата[[#This Row],[Отстъпка]]","v":{"v":155,"d":"155.00 лв."}}]
[null,"Фактура 3-456-2 данни 3","3-456-2","Z4569",{"v":30,"d":"30 "},{"v":6,"d":"6.00 лв."},{"v":7,"d":"7.00 лв."},{"$f":"(Подробниданнизафактурата[[#This Row],[Кол-во]]*Подробниданнизафактурата[[#This Row],[Единична цена]])-Подробниданнизафактурата[[#This Row],[Отстъпка]]","v":{"v":173,"d":"173.00 лв."}}]
[null,"Фактура 3-456-2 данни 4","3-456-2","Z4570",{"v":40,"d":"40 "},{"v":7,"d":"7.00 лв."},null,{"$f":"(Подробниданнизафактурата[[#This Row],[Кол-во]]*Подробниданнизафактурата[[#This Row],[Единична цена]])-Подробниданнизафактурата[[#This Row],[Отстъпка]]","v":{"v":280,"d":"280.00 лв."}}]
[null,"Фактура 3-456-2 данни 5","3-456-2","Z4571",{"v":10,"d":"10 "},{"v":4,"d":"4.00 лв."},null,{"$f":"(Подробниданнизафактурата[[#This Row],[Кол-во]]*Подробниданнизафактурата[[#This Row],[Единична цена]])-Подробниданнизафактурата[[#This Row],[Отстъпка]]","v":{"v":40,"d":"40.00 лв."}}]
[null,"Фактура 3-456-2 данни 6","3-456-2","Z4572",{"v":5,"d":"5 "},{"v":8,"d":"8.00 лв."},null,{"$f":"(Подробниданнизафактурата[[#This Row],[Кол-во]]*Подробниданнизафактурата[[#This Row],[Единична цена]])-Подробниданнизафактурата[[#This Row],[Отстъпка]]","v":{"v":40,"d":"40.00 лв."}}]
[null,"Фактура 3-456-2 данни 7","3-456-2","Z4573",{"v":70,"d":"70 "},{"v":6,"d":"6.00 лв."},null,{"$f":"(Подробниданнизафактурата[[#This Row],[Кол-во]]*Подробниданнизафактурата[[#This Row],[Единична цена]])-Подробниданнизафактурата[[#This Row],[Отстъпка]]","v":{"v":420,"d":"420.00 лв."}}]
[null,"Фактура 3-456-2 данни 8","3-456-2","Z4574",{"v":25,"d":"25 "},{"v":4,"d":"4.00 лв."},null,{"$f":"(Подробниданнизафактурата[[#This Row],[Кол-во]]*Подробниданнизафактурата[[#This Row],[Единична цена]])-Подробниданнизафактурата[[#This Row],[Отстъпка]]","v":{"v":100,"d":"100.00 лв."}}]
[null,"Фактура 3-456-2 данни 9","3-456-2","Z4575",{"v":5,"d":"5 "},{"v":7,"d":"7.00 лв."},{"v":3,"d":"3.00 лв."},{"$f":"(Подробниданнизафактурата[[#This Row],[Кол-во]]*Подробниданнизафактурата[[#This Row],[Единична цена]])-Подробниданнизафактурата[[#This Row],[Отстъпка]]","v":{"v":32,"d":"32.00 лв."}}]
[null,"Фактура 3-456-2 данни 10","3-456-2","Z4576",{"v":80,"d":"80 "},{"v":1,"d":"1.00 лв."},null,{"$f":"(Подробниданнизафактурата[[#This Row],[Кол-во]]*Подробниданнизафактурата[[#This Row],[Единична цена]])-Подробниданнизафактурата[[#This Row],[Отстъпка]]","v":{"v":80,"d":"80.00 лв."}}]
[null,"Фактура 3-456-2 данни 11","3-456-2","Z4577",{"v":65,"d":"65 "},{"v":7,"d":"7.00 лв."},null,{"$f":"(Подробниданнизафактурата[[#This Row],[Кол-во]]*Подробниданнизафактурата[[#This Row],[Единична цена]])-Подробниданнизафактурата[[#This Row],[Отстъпка]]","v":{"v":455,"d":"455.00 лв."}}]
[null,"Фактура 3-456-2 данни 12","3-456-2","Z4578",{"v":44,"d":"44 "},{"v":1,"d":"1.00 лв."},null,{"$f":"(Подробниданнизафактурата[[#This Row],[Кол-во]]*Подробниданнизафактурата[[#This Row],[Единична цена]])-Подробниданнизафактурата[[#This Row],[Отстъпка]]","v":{"v":44,"d":"44.00 лв."}}]

{"sheet":"Проследяване за тази фактура","index":4,"n_rows":40,"n_cols":3,"rows_kept":40,"merged":[[3,1,3,7],[4,1,4,7],[5,1,5,7],[6,1,6,7],[7,2,7,7],[8,2,8,7],[9,2,9,7],[10,2,10,7],[11,2,11,7],[12,1,12,7],[13,2,13,3],[14,2,14,7],[15,1,15,7],[16,2,16,7],[17,2,17,7],[18,2,18,7],[19,2,19,7],[20,2,20,7],[21,2,21,7],[22,1,22,7],[23,1,23,7],[24,2,24,7],[25,2,25,7],[26,2,26,7],[27,2,27,7],[28,1,28,7],[29,1,29,7],[30,2,30,7],[31,2,31,7],[32,2,32,7],[33,2,33,7],[34,2,34,7],[36,2,36,7],[37,2,37,7],[38,2,38,7],[39,2,39,7]]}
[null,"Проследяване за тази фактура"]
[]
[]
[null,"Всъщност проследяването на фактури е създадено за поддържане на хронология на клиентите, фактурите и подробните данни за фактурата, така че да може да съхранявате множество фактури, без да създавате множество файлове. Можете също да използвате проследяването на фактурата, за да анализирате данните, които сте фактурирали по-рано. Например можете да видите всички фактури за клиент, конкретен проект или да прегледате всички фактури за последния месец, последната година и други."]
[null,"Преди да започнете, разгледайте примерните предоставени данни. В листа на фактурата изберете клетката отдясно на фактура № (клетка L8) и ще се покаже падащият списък. Изберете стрелката за падащо меню и след това изберете примерна фактура. Забележете как цялата информация за фактурата се променя автоматично, за да отрази избраната фактура. Сега погледнете в листовете с клиенти, фактури – главни и подробни данни за фактурата. Всеки от тези листове предоставя информация за фактурата и всички промени, които правите, ще бъдат актуализирани автоматично. "]
[null,"Как да започна?"]
[null,"Променете номера на фактурата, така че да отразява вашата фирмена информация, като използвате следните стъпки:"]
[null,"1.","Придвижете се до лист Фактура и в раздела Преглед, в групата Защита изберете Премахване на защитата на лист. "]
[null,null,"Забележка: Листът на фактурата е защитен, за да избегнете неволни промени, тъй като, както споменахме по-горе, по-голямата част от данните в този лист са извлечени от всички други листи в работната книга. "]
[null,"2.","Персонализирайте заглавието на фактурата, като въведете името на вашата фирма, адреса на улицата, град, пощенски код, имейл адрес, уеб сайт и т. н. В долната част на фактурата (ред 43) Променете инструкциите за плащане. "]
[null,null,"Важно! Не променяйте информацията за фактуриране. Всички тези клетки имат формули, които ще актуализират автоматично фактурата, както е посочено в раздела Проследяване за тази фактура. "]
[null,"3.","(по желание) Променете цветовете в работната книга: В раздела Оформление на страниците, в групата Теми изберете Цветове и изберете друга зададена от галерията цветова палитра. "]
[null,"Съвет: Можете да създадете цветова палитра по избор, за да подхожда на фирмената ви марка! За да направите това, в раздела Оформление на страниците, в групата Теми изберете Цветове и след това изберете Персонализиране на цветовете. За повече информация относно създаването на набор от цветове по избор вижте следната помощна тема: "]
[null,null,"Персонализиране на тема на документ."]
[null,"4.","След като сте направили желаните промени, върнете се в листа за фактури и в раздела Преглед, в групата промени изберете защита на лист и след това изберете OK. Когато формулярът за фактура е защитен, единствената клетка, която можете да изберете, е клетката с фактура № с падащото меню."]
[null,"Как да създам фактура?"]
[null,"1.","В листа с клиенти въведете информация за клиента, като например името на фирмата и адреса. Обърнете внимание, че фирма № е важен запис, тъй като предоставя уникален идентификатор за всяка фирма, която се използва в проследяването на фактури. Също така обърнете внимание, че трябва да добавите фирма само веднъж. За последващи фактури за една и съща фирма тази стъпка може да бъде пропусната. "]
[null,null,"Забележка: Ако присвоите един и същ номер на повече от една фирма или въведете същото име на фирма повече от веднъж, записите ще станат червени, за да ви предупредят за дублирането. "]
[null,"2.","В основния лист фактури въведете основна информация за фактурата си, като например фактура №, дата на фактурата и описание на проекта. Подобно на компания №, фактурата № е важен запис, тъй като предоставя уникален идентификатор за всяка фактура и се използва във фактурата за проследяване на фактури. Друг важен елемент е фирмата. Когато изберете фирма от падащия списък, условието е, че свързва фактурата ви с тази фирма. След това, когато изберете Фактура № в листа на фактурата, информацията за тази фирма, като например име на фирма и адрес, автоматично ще се попълни във фактурата."]
[null,null,"Забележка: Ако присвоите едно и също число на повече от една фактура, записите ще станат червени, за да ви предупредят за дублирането. "]
[null,"3.","В листа с подробни данни за фактурата въведете подробностите за фактурата си, като например описание на елемента, елемент №, количество и единична цена. Фактура № от падащото меню предоставя списък с фактурите, които сте въвели в основния лист за фактуриране, за да улесните въвеждането на данни. Подобно на компания № в предишната стъпка фактурата № свързва този подробен елемент с конкретна фактура. Когато изберете Фактура № в листа с фактура от падащото меню Фактура №, свързаните подробности за фактурата ще се появят за тази фактура."]
[null,null,"Забележка: Ограничението ви е до 25 подробни данни за една фактура. Ако са добавени повече от 25 елемента, всички съответстващи записи ще станат червени, за да ви предупредят за това ограничение. Ако имате повече от 25 артикула за фактуриране, ще трябва да създадете втора фактура. "]
[null,"Как да добавя още клиенти, фактури и подробности за фактурата?"]
[null,"Данните за клиентите, фактурите и подробностите за фактурата се съхраняват в таблици на Excel. Когато добавите нов ред в таблица, новият добавен ред ще се форматира автоматично и всички изчисления ще бъдат копирани. За да добавите нови редове в таблица, направете едно от следните неща:"]
[null,"● ","Ако таблицата няма ред за общи суми, започнете да въвеждате под таблицата, и той автоматично ще се разгъне, когато натиснете клавиша Enter или Tab."]
[null,"● ","Поставете показалеца на клетки в последната клетка над сумарния ред, като например в таблицата Фактури в клетката за бележки за последната фактура и след това натиснете Tab."]
[null,"● ","В раздела Начало, в групата Клетки изберете Вмъкни,и след това изберете Ред от таблицата по-горе или Ред от таблицата по-долу. "]
[null,"● ","В долния десен ъгъл на таблицата поставете показалеца на мишката върху манипулатора за оразмеряване на таблица и плъзнете, за да увеличите броя на наличните редове на таблицата."]
[null,"Как да анализирам данните за фактурата си?"]
[null,"Както е отбелязано в раздела за проследяване на фактури, след като сте въвели няколко фактури, можете да видите списък на всички фактури за конкретен клиент, проект, определен интервал от дати и много други неща. Този тип анализ се извършва с помощта на филтър, който ви позволява бързо да стесните списъка с данни. За да получите достъп до филтър в таблиците клиенти, фактури или подробни данни за фактурата, изберете падаща стрелка до всяко име на поле от таблица. Ще се покаже екран за филтър, който ви дава разнообразни опции за филтриране. Ето няколко примера за филтриране, които ще ви помогнат да започнете:"]
[null,"● ","За да видите общата сума, по която сте фактурирали определен клиент: В основния лист фактури – вдясно от полето Фирма № изберете стрелката за падащо меню. В екрана филтър щракнете върху Избери всички, за да отмените избора на всички фирми, изберете желаната фирма и след това изберете OK. "]
[null,null,"Съвет: В екрана Филтър можете също да въведете името на клиента в полето за Търсене на текст, за да търсите бързо в наличния списък."]
[null,"● ","За да видите всички фактури за конкретен клиент и конкретни проект (и): Стартирайте чрез филтриране за желания клиент, като използвате стъпките, дадени в предишния пример. След това, отдясно на Проект № изберете стрелката за падащо меню. В екрана филтър изберете желания проект или проекти и след това изберете OK. "]
[null,"● ","За да видите всички фактури за предходния месец: В основния лист фактури – вдясно от полето дата на фактурата, изберете стрелката за падащо меню, посочете филтри по дата и след това изберете миналия месец."]
[null,"● ","За да видите всички клиенти с един и същ регионален код: В листа клиенти, вдясно от полето Телефон изберете стрелката за падащо меню. В екрана филтър щракнете в текстовото поле за търсене, въведете кода на областта и след това изберете OK. "]
[null,"Съвети за филтриране"]
[null,"● ","Ако таблицата има сумарен ред, като например Клиенти и Фактури, изчисляемите общи суми ще отразяват само вашия филтриран списък."]
[null,"● ","Използвайте няколко филтъра в едно поле или в няколко полета, за да прецизирате резултатите си."]
[null,"● ","За да изчистите единичен филтър, изберете стрелката за падащо меню за предишна филтрирана колона и след това изберете Изчисти филтъра от < име на поле >."]
[null,"● ","За да изчистите няколко филтъра едновременно, поставете показалеца на клетка в таблицата, в раздела Начало, в групата Редактиране изберете Сортиране и филтриране и след това изберете Изчисти."]